bitfinex/quotes_SOLUSD_20251223
["timestamp","ask_amount","ask_price","bid_price","bid_amount"]
[1766527649755,8.03415251,124.47,124.44,0.67]
[1766527650146,8.03341902,124.48,124.45,0.67]
[1766527650950,8.03306294,124.49,124.45,0.67]
[1766527651363,8.03306294,124.49,124.45,2.55158502]
[1766527651567,9.91464796,124.49,124.45,0.67]
[1766527655778,9.91464796,124.49,124.46,0.68]
[1766527655779,8.03306294,124.49,124.46,0.68]
[1766527657684,18.47009612,124.5,124.46,0.68]
[1766527657867,18.47009612,124.5,124.47,0.67]
[1766527658391,8.03242316,124.5,124.47,0.67]
[1766527660566,10.97170409,124.5,124.47,0.67]
[1766527661583,30.61562513,124.52,124.48,0.67]
[1766527661584,0.1,124.52,124.48,0.67]
[1766527661786,3.03928093,124.52,124.48,0.67]
[1766527662868,2.93928093,124.49,124.46,0.67]
[1766527663194,2.93928093,124.5,124.47,0.67]
[1766527666967,10.97168572,124.5,124.47,0.67]
[1766527679510,8.03240479,124.5,124.47,0.67]
[1766527679718,10.97168572,124.5,124.47,0.67]
[1766527680912,8.03148341,124.51,124.47,0.67]
[1766527681208,2.93928093,124.5,124.47,0.67]
[1766527684010,8.03245506,124.5,124.47,0.67]
[1766527684209,10.97173599,124.5,124.47,0.67]
[1766527695729,8.03148341,124.51,124.47,0.67]
[1766527695930,10.97076434,124.51,124.47,0.67]
[1766527705343,2.93928093,124.5,124.47,0.67]
[1766527707944,10.9720544,124.5,124.47,0.67]
[1766527709849,8.03277347,124.5,124.46,2.93928093]
[1766527710046,8.03277347,124.5,124.47,0.67]
[1766527714329,0.67,124.47,124.44,0.71]
[1766527714528,3.60928093,124.47,124.44,0.71]
[1766527717350,11.64373219,124.47,124.44,0.71]
[1766527718056,10.5863693,124.47,124.44,0.71]
[1766527721046,8.03445126,124.47,124.44,0.71]
[1766527721242,0.7,124.5,124.45,1.88191804]
[1766527721443,0.7,124.49,124.45,1.88191804]
[1766527722359,8.73288229,124.49,124.45,1.88191804]
[1766527724042,8.73288229,124.49,124.44,9.91764615]
[1766527724259,10.61480033,124.49,124.44,9.91764615]
[1766527724564,8.73288229,124.49,124.44,8.03572811]
[1766527724750,10.61480033,124.49,124.44,9.91764615]
[1766527726143,1.88191804,124.5,124.45,1.88191804]
[1766527726476,0.7,124.5,124.46,1.88191804]
[1766527727363,0.7,124.5,124.45,16.56191804]
[1766527727764,0.7,124.5,124.45,14.68]
[1766527727765,2.58191804,124.5,124.45,14.68]
[1766527728363,0.7,124.46,124.42,1.88191804]
[1766527728566,1.88191804,124.47,124.42,1.88191804]
[1766527728567,1.88191804,124.45,124.42,14.68]
[1766527728861,1.88191804,124.45,124.38,6.93208777]
[1766527728862,0.7,124.42,124.39,14.68]
[1766527729163,2.58191804,124.42,124.39,14.68]
[1766527729669,1.88191804,124.41,124.39,14.68]
[1766527729971,1.88191804,124.45,124.36,42.85950466]
[1766527729972,2.58191804,124.4,124.36,10.43767296]
[1766527730270,1.88191804,124.39,124.36,10.43767296]
[1766527730566,1.88191804,124.39,124.35,22.72159695]
[1766527730742,2.58191804,124.4,124.36,8.04112665]
[1766527730944,10.62062811,124.4,124.35,22.72164182]
[1766527731161,10.62062811,124.4,124.35,24.60355986]
[1766527731840,9.92062811,124.4,124.35,24.60355986]
[1766527732044,0.7,124.39,124.35,24.60355986]
[1766527732261,0.7,124.38,124.34,12.319591]
[1766527732460,0.7,124.38,124.35,14.68]
[1766527734873,0.7,124.38,124.35,24.6036879]
[1766527735870,0.7,124.38,124.36,1.88191804]
[1766527736170,0.7,124.36,124.31,0.2]
[1766527736377,0.7,124.37,124.31,0.2]
[1766527737073,0.7,124.36,124.32,1.88191804]
[1766527737273,0.7,124.36,124.31,0.2]
[1766527737473,0.7,124.36,124.32,1.88191804]
[1766527738258,0.7,124.36,124.32,8.04374373]
[1766527738576,0.7,124.36,124.32,9.92566177]
[1766527742555,0.7,124.36,124.33,1.88191804]
[1766527743161,0.7,124.38,124.35,1.88191804]
[1766527743359,0.7,124.38,124.36,1.88191804]
[1766527743559,0.7,124.38,124.37,1.88191804]
[1766527744360,0.7,124.38,124.36,1.88191804]
[1766527744560,8.73899627,124.4,124.37,1.88191804]
[1766527744870,0.7,124.4,124.37,1.88191804]
[1766527747152,8.73860847,124.4,124.37,1.88191804]
[1766527748976,8.73860847,124.4,124.36,8.04082438]
[1766527749186,8.73860847,124.4,124.37,1.88191804]
[1766527749660,0.66,124.39,124.34,28.14776443]
[1766527749858,0.66,124.39,124.37,1.88191804]
[1766527752985,0.66,124.39,124.35,8.04117664]
[1766527753184,0.66,124.39,124.37,1.88191804]
[1766527754056,10.43767296,124.41,124.37,8.04047396]
[1766527754274,16.07815561,124.43,124.37,22.72047396]
[1766527754275,0.66,124.42,124.37,22.72047396]
[1766527754482,2.54191804,124.42,124.36,8.04088385]
[1766527754691,0.66,124.4,124.35,42.81205469]
[1766527754873,0.66,124.4,124.36,1.88191804]
[1766527755079,0.66,124.4,124.37,1.88191804]
[1766527755269,0.66,124.4,124.38,1.88191804]
[1766527755790,0.66,124.4,124.39,1.88191804]
[1766527758665,8.03746016,124.42,124.39,1.88191804]
[1766527759694,28.12826488,124.43,124.39,1.88191804]
[1766527760771,0.66,124.42,124.39,1.88191804]
[1766527763477,8.69732446,124.42,124.4,1.88191804]
[1766527763679,8.69732446,124.42,124.39,0.68]
[1766527764217,8.69732446,124.42,124.4,1.88191804]
[1766527769397,25.77767296,124.44,124.41,2.56191804]
[1766527769599,0.66,124.43,124.41,1.88191804]
[1766527773689,0.66,124.43,124.4,0.68]
[1766527773982,8.6967196,124.43,124.41,1.88191804]
[1766527776209,8.6967196,124.43,124.4,2.56191804]
[1766527778113,8.6967196,124.43,124.4,3.62162683]
[1766527781810,8.6967196,124.43,124.4,0.68]
[1766527782011,8.6967196,124.43,124.4,3.62162683]
[1766527787316,19.15389632,124.44,124.41,3.62162683]
[1766527787913,0.68,124.43,124.41,0.68]
[1766527788115,0.68,124.43,124.41,3.62162683]
[1766527789416,8.71665671,124.43,124.4,3.62162683]
[1766527789710,8.71665671,124.43,124.41,0.68]
[1766527789711,8.03665671,124.43,124.41,0.68]
[1766527793002,8.03665671,124.43,124.41,3.62162683]
[1766527793719,8.03665671,124.43,124.41,0.68]
[1766527794610,19.15400642,124.44,124.41,3.62162683]
[1766527801220,0.68,124.43,124.38,8.71881683]
[1766527801404,0.68,124.4,124.38,8.03881683]
[1766527801610,0.68,124.4,124.36,28.73929979]
[1766527801611,3.62162683,124.4,124.36,25.79767296]
[1766527801814,3.62162683,124.4,124.37,0.68]
[1766527802615,0.68,124.4,124.37,0.68]
[1766527802818,3.62162683,124.4,124.37,0.68]
[1766527803322,11.66051441,124.4,124.37,0.68]
[1766527803704,3.62162683,124.38,124.34,10.98385263]
[1766527803908,0.68,124.38,124.35,0.68]
[1766527807030,0.65,124.36,124.33,14.68]
[1766527807231,0.65,124.36,124.33,15.36]
[1766527807436,0.65,124.36,124.33,18.30162683]
[1766527808925,0.65,124.36,124.33,15.36]
[1766527809128,0.65,124.36,124.33,18.30162683]
[1766527809325,0.65,124.36,124.33,15.36]
[1766527809633,0.65,124.36,124.33,18.30162683]
[1766527812337,0.65,124.36,124.33,15.36]
[1766527812638,0.65,124.36,124.33,18.30162683]
[1766527813236,0.65,124.36,124.33,15.36]
[1766527817142,0.65,124.36,124.33,18.30162683]
[1766527818330,0.65,124.36,124.33,15.36]
[1766527819940,0.65,124.35,124.33,14.68]
[1766527820246,0.65,124.35,124.32,0.68]
[1766527821043,8.69183175,124.35,124.32,0.68]
[1766527821420,0.65,124.34,124.31,14.88]
[1766527821633,0.65,124.34,124.31,15.56]
[1766527823317,8.69249241,124.34,124.31,0.88]
[1766527824219,0.65,124.32,124.31,1e-08]
[1766527824848,0.65,124.33,124.31,1e-08]
[1766527825444,8.69327654,124.33,124.31,1e-08]
[1766527825745,0.65,124.32,124.31,1e-08]
[1766527826848,3.59162683,124.32,124.31,1e-08]
[1766527827357,11.63538487,124.32,124.31,1e-08]
[1766527827970,8.69375804,124.32,124.31,1e-08]
[1766527828337,11.63538487,124.32,124.31,1e-08]
[1766527829026,11.63538487,124.32,124.29,0.88]
[1766527829027,0.65,124.31,124.29,1e-08]
[1766527829231,3.59162683,124.3,124.29,1e-08]
[1766527829460,11.63667912,124.3,124.29,1e-08]
[1766527830752,0.65,124.29,124.28,1e-08]
[1766527830934,3.59162683,124.29,124.28,1e-08]
[1766527831459,11.6373264,124.29,124.28,1e-08]
[1766527831674,0.65,124.28,124.27,1e-08]
[1766527832263,0.65,124.28,124.26,1e-08]
[1766527834077,8.69653567,124.28,124.26,1e-08]
[1766527835355,8.69653567,124.28,124.25,0.1]
[1766527835356,0.66,124.26,124.25,0.1]
[1766527835577,0.66,124.26,124.24,0.2]
[1766527835773,3.60162683,124.26,124.24,0.2]
[1766527836071,8.04828973,124.25,124.24,0.2]
[1766527836276,0.66,124.24,124.22,0.2]
[1766527836473,0.66,124.24,124.2,0.2]
[1766527836669,0.66,124.22,124.2,0.2]
[1766527837275,0.7,124.21,124.18,0.2]
[1766527838175,8.75120246,124.21,124.18,0.2]
[1766527838377,0.7,124.2,124.18,0.2]
[1766527838872,3.64162683,124.2,124.18,0.2]
[1766527839074,0.7,124.19,124.17,0.1]
[1766527840085,0.7,124.18,124.17,0.1]
[1766527840253,0.7,124.18,124.17,1e-08]
[1766527841067,11.13767296,124.24,124.17,1e-08]
[1766527841279,0.7,124.21,124.17,1.89015902]
[1766527841584,0.7,124.21,124.18,1.89015901]
[1766527841779,0.7,124.21,124.17,1e-08]
[1766527841984,8.15400692,124.2,124.15,0.1]
[1766527842184,8.05103774,124.21,124.17,1.89015901]
[1766527842380,8.04246421,124.34,124.15,0.1]
[1766527842681,6.2281,124.24,124.22,1.89015901]
[1766527842878,14.7,124.23,124.18,1.89015901]
[1766527843088,14.7,124.23,124.15,14.20475871]
[1766527843089,14.7,124.23,124.17,1.89015901]
[1766527843259,1.89015901,124.21,124.15,0.1]
[1766527843464,14.7,124.2,124.15,0.1]
[1766527843674,8.05217811,124.19,124.15,0.1]
[1766527844165,0.7,124.18,124.15,0.1]
[1766527844361,14.7,124.17,124.15,0.1]
[1766527845166,15.4,124.17,124.15,0.1]
[1766527845788,15.4,124.17,124.15,1.99015901]
[1766527846276,15.4,124.17,124.15,0.1]
[1766527846795,23.45348097,124.17,124.13,1.99015901]
[1766527847205,0.7,124.16,124.13,0.1]
[1766527847390,0.7,124.15,124.13,0.1]
[1766527847591,15.4,124.14,124.13,0.1]
[1766527847785,0.7,124.13,124.1,1.89015901]
[1766527848184,0.7,124.13,124.09,1.89015901]
[1766527848480,0.7,124.13,124.1,1.89015901]
[1766527849101,0.7,124.13,124.07,10.43767296]
[1766527849413,0.7,124.13,124.04,26.28202299]
[1766527849414,0.7,124.12,124.04,26.28202299]
[1766527849581,0.7,124.1,124.07,1.89015901]
[1766527849777,0.7,124.1,124.08,1.89015901]
[1766527850587,22.75753829,124.11,124.06,8.0605682]
[1766527850901,23.45753829,124.11,124.08,1.89015901]
[1766527851104,0.7,124.1,124.08,1.89015901]
[1766527851901,14.7,124.09,124.05,30.10458866]
[1766527852099,14.7,124.11,124.08,1.89015901]
[1766527852287,14.7,124.11,124.09,1.89015901]
[1766527853204,23.45749403,124.11,124.08,1.89015901]
[1766527854808,23.45749403,124.11,124.09,1.89015901]
[1766527855315,23.45749403,124.11,124.08,1.89015901]
[1766527857183,23.45749403,124.11,124.05,22.04332305]
[1766527857184,0.7,124.1,124.05,8.06101998]
[1766527857504,0.7,124.1,124.06,1.89015901]
[1766527857803,0.7,124.1,124.07,1.89015901]
[1766527858187,0.7,124.1,124.05,9.95117899]
[1766527858188,0.7,124.1,124.06,1.89015901]
[1766527858387,0.7,124.1,123.99,74.52389647]
[1766527858388,0.7,124.07,124.0,1.89015901]
[1766527858606,15.4,124.06,124.03,1.89015901]
[1766527858807,0.7,124.07,124.05,1.89015901]
[1766527859012,14.7,124.06,124.05,1.89015901]
[1766527859199,14.7,124.06,124.04,1.89015901]
[1766527859708,15.4,124.07,124.05,1.89015901]
[1766527860513,15.4,124.07,124.06,1.89015901]
[1766527860685,15.4,124.07,124.05,1.89015901]
[1766527861184,14.7,124.07,124.05,1.89015901]
[1766527861385,14.7,124.07,124.03,8.06218441]
[1766527861386,14.7,124.07,124.04,1.89015901]
[1766527861788,10.43767296,124.09,124.06,1.89015901]
[1766527862113,10.43767296,124.09,124.03,6.1281]
[1766527862305,10.43767296,124.09,124.07,1.89015901]
[1766527862708,10.43767296,124.09,124.02,0.80632156]
[1766527862709,11.13767296,124.09,124.03,20.15557452]
[1766527863019,11.13767296,124.09,124.05,1.89015901]
[1766527864216,19.19651838,124.09,124.05,1.89015901]
[1766527864916,18.49651838,124.09,124.07,1.89015901]
[1766527865316,19.19651838,124.09,124.04,8.06178194]
[1766527865533,19.19651838,124.09,124.06,1.89015901]
[1766527868717,33.91651838,124.09,124.06,1.89015901]
[1766527868894,19.19651838,124.09,124.06,1.89015901]
[1766527869100,33.91651838,124.09,124.06,1.89015901]
[1766527869496,19.19651838,124.09,124.06,1.89015901]
[1766527870434,33.91651838,124.09,124.06,1.89015901]
[1766527870721,19.19651838,124.09,124.06,1.89015901]
[1766527870918,33.91651838,124.09,124.06,1.89015901]
[1766527874498,33.91651838,124.09,124.03,20.15557452]
[1766527874720,33.91651838,124.09,124.06,1.89015901]
[1766527876723,23.47884542,124.09,124.05,8.06112989]
[1766527876933,23.47884542,124.09,124.06,1.89015901]
[1766527877807,8.75884542,124.09,124.06,1.89015901]
[1766527878009,0.68,124.08,124.02,6.1281]
[1766527878237,0.68,124.08,124.05,1.89015901]
[1766527878427,0.68,124.08,124.04,1.89015901]
[1766527878627,0.68,124.08,124.0,18.50184636]
[1766527878628,8.06061583,124.06,124.0,18.50184636]
[1766527878933,8.06061583,124.06,123.99,8.06474026]
[1766527878934,0.68,124.04,123.99,8.06474026]
[1766527879137,15.4,124.04,124.01,1.89015901]
[1766527880437,15.4,124.04,123.99,8.0651359]
[1766527880638,15.4,124.04,123.99,1e-08]
[1766527880639,23.4621412,124.04,123.99,1e-08]
[1766527880840,23.4621412,124.04,124.01,1.89015901]
[1766527881440,22.78152032,124.05,124.03,1.89015901]
[1766527881735,22.78152032,124.05,124.01,2.57015901]
[1766527881926,42.93468436,124.05,123.99,1e-08]
[1766527882120,1.89015901,124.03,123.99,1e-08]
[1766527882319,14.72,124.02,123.99,1e-08]
[1766527882522,14.72,124.04,124.01,1.89015901]
[1766527882912,14.72,124.04,123.99,1e-08]
[1766527882913,22.78253852,124.04,123.99,1e-08]
[1766527883140,44.8274863,124.04,123.99,1.89015902]
[1766527883522,0.68,124.03,123.99,1.89015902]
[1766527883720,44.8274863,124.04,123.99,1.89015902]
[1766527883721,15.4,124.02,123.99,1.89015902]
[1766527884334,15.4,124.02,124.0,1.89015901]
[1766527884526,15.4,124.02,123.99,1.89015902]
[1766527884838,15.4,124.02,124.0,1.89015901]
[1766527885239,0.68,124.01,123.99,1e-08]
[1766527887647,8.7440447,124.01,123.99,1e-08]
[1766527887832,0.68,124.01,123.99,1e-08]
[1766527888017,14.72,124.03,124.0,2.57015901]
[1766527888222,14.72,124.03,124.01,1.89015901]
[1766527888644,14.72,124.03,124.0,0.68]
[1766527888828,14.72,124.03,124.0,2.57015901]
[1766527889612,14.72,124.03,124.01,1.89015901]
[1766527889820,14.72,124.05,124.0,1.89015901]
[1766527890026,14.72,124.05,124.03,1.89015901]
[1766527890440,14.72,124.05,124.0,1.89015901]
[1766527890654,14.72,124.05,124.03,1.89015901]
[1766527890948,8.01825901,124.09,124.04,1.89015901]
[1766527890949,0.68,124.09,124.04,1.89015901]
[1766527891142,15.4,124.09,124.07,1.89015901]
[1766527891322,15.4,124.09,124.06,1.89015901]
[1766527891641,15.4,124.09,124.01,10.76086183]
[1766527891951,15.4,124.09,124.07,1.89015901]
[1766527892147,14.72,124.09,124.07,1.89015901]
[1766527895254,14.72,124.09,124.05,9.95141899]
[1766527895437,14.72,124.09,124.07,1.89015901]
[1766527895636,14.72,124.09,124.03,8.06214605]
[1766527895637,0.72,124.08,124.03,8.06214605]
[1766527895836,0.72,124.08,124.06,1.89015901]
[1766527897351,0.66,124.06,124.01,18.50115375]
[1766527897564,0.66,124.06,124.04,1.89015901]
[1766527897723,0.66,124.06,124.0,20.16057832]
[1766527897919,0.66,124.06,124.03,1.89015901]
[1766527898125,15.38,124.07,124.04,1.89015901]
[1766527898324,0.66,124.06,124.04,1.89015901]
[1766527899242,0.66,124.06,124.05,1.89015901]
[1766527899446,14.72,124.07,124.05,1.89015901]
[1766527899643,15.38,124.07,124.06,1.89015901]
[1766527900028,15.38,124.07,124.03,8.06255799]
[1766527900228,10.43767296,124.08,124.06,1.89015901]
[1766527900435,10.43767296,124.08,124.07,1.89015901]
[1766527900750,8.0567193,124.12,124.07,1.89015901]
[1766527900932,22.7767193,124.12,124.08,1.89015901]
[1766527901254,22.7767193,124.12,124.09,1.89015901]
[1766527901454,8.05618446,124.13,124.09,1.89015901]
[1766527901652,8.05618446,124.13,124.1,1.89015901]
[1766527901856,20.13797194,124.15,124.11,1.89015901]
[1766527901857,8.05562158,124.14,124.11,1.89015901]
[1766527902026,8.05502825,124.15,124.12,2.95527902]
[1766527902229,0.66,124.14,124.12,2.95527902]
[1766527902924,0.66,124.12,124.09,0.66]
[1766527903131,0.66,124.12,124.09,3.61527902]
[1766527903839,10.43767296,124.13,124.11,2.95527902]
[1766527904932,0.66,124.14,124.11,2.95527902]
[1766527906554,8.71414821,124.16,124.13,2.95527902]
[1766527907860,10.63767296,124.17,124.15,2.95527902]
[1766527908041,0.86,124.17,124.15,2.95527902]
[1766527908247,8.91355551,124.17,124.14,2.95527902]
[1766527908450,8.91355551,124.17,124.13,3.61527902]
[1766527908866,8.91355551,124.17,124.1,23.09969015]
[1766527908867,0.66,124.15,124.1,8.71751297]
[1766527909156,0.66,124.15,124.12,2.95527902]
[1766527912468,11.09767296,124.16,124.13,2.95527902]
[1766527912862,11.09767296,124.16,124.12,3.61527902]
[1766527914368,10.43767296,124.16,124.12,0.66]
[1766527914665,10.43767296,124.16,124.12,2.95527902]
[1766527914666,0.66,124.15,124.12,2.95527902]
[1766527917473,8.05478186,124.15,124.11,2.95527902]
[1766527917671,0.66,124.14,124.1,3.61527902]
[1766527918874,0.66,124.14,124.11,2.95527902]
[1766527919045,0.66,124.14,124.11,3.61527902]
[1766527919650,0.66,124.14,124.1,2.95527902]
[1766527920172,11.01073919,124.14,124.09,2.95527902]
[1766527920465,0.66,124.13,124.09,2.95527902]
[1766527921847,0.66,124.13,124.06,25.15767296]
[1766527921848,0.66,124.12,124.06,15.38]
[1766527922056,0.66,124.11,124.06,15.38]
[1766527922267,0.66,124.11,124.07,2.95527902]
[1766527922457,0.66,124.11,124.07,3.61527902]
[1766527923451,0.66,124.11,124.07,2.95527902]
[1766527923774,0.66,124.11,124.06,14.72]
[1766527923775,0.66,124.1,124.06,17.67527902]
[1766527924151,0.66,124.1,124.06,18.33527902]
[1766527924470,0.66,124.1,124.07,2.95527902]
[1766527925596,3.61527902,124.09,124.02,20.96361942]
[1766527925766,0.66,124.07,124.03,3.61527902]
[1766527925967,2.95527902,124.09,124.04,3.61527902]
[1766527926153,0.66,124.08,124.04,3.61527902]
[1766527926355,0.66,124.08,124.04,11.67717666]
[1766527926869,0.66,124.08,124.04,3.61527902]
[1766527927289,13.39295198,124.08,124.02,14.72]
[1766527927596,0.67,124.07,124.03,2.95527902]
[1766527928054,0.67,124.07,124.03,3.60527902]
[1766527928253,0.67,124.07,124.03,0.65]
[1766527928470,0.67,124.07,124.03,3.60527902]
[1766527928668,8.73007893,124.07,124.03,3.60527902]
[1766527928897,0.67,124.06,124.01,23.43325396]
[1766527929180,10.43767296,124.04,124.0,2.95527902]
[1766527929356,0.67,124.02,123.98,3.60527902]
[1766527929771,0.67,124.02,123.99,2.95527902]
[1766527930766,0.67,124.02,123.98,3.60527902]
[1766527931578,8.73324657,124.02,123.97,3.60527902]
[1766527931785,0.67,124.01,123.97,3.60527902]
[1766527933683,0.67,124.01,123.97,0.65]
[1766527935313,0.67,124.01,123.97,11.67164183]
[1766527935786,0.67,124.01,123.97,8.06636281]
[1766527936293,0.67,124.01,123.96,18.32527902]
[1766527936686,0.67,124.01,123.96,26.39187244]
[1766527937197,0.67,124.01,123.98,2.95527902]
[1766527937492,0.67,124.01,123.97,11.67156378]
[1766527938087,0.67,124.01,123.98,2.95527902]
[1766527938796,0.67,124.01,123.97,3.60527902]
[1766527939681,0.67,124.01,123.97,11.67174464]
[1766527940100,0.67,124.01,123.97,8.71646562]
[1766527940275,0.67,124.01,123.97,11.67174464]
[1766527940636,0.67,124.01,123.97,3.60527902]
[1766527940895,0.67,124.01,123.98,3.60527902]
[1766527941096,0.67,124.01,123.98,2.95527902]
[1766527941678,0.67,124.01,123.97,8.71639996]
[1766527941679,0.67,124.01,123.97,11.67167898]
[1766527941884,0.67,124.01,123.97,8.71639996]
[1766527942084,0.67,124.01,123.97,11.67167898]
[1766527942276,0.67,124.01,123.98,2.95527902]
[1766527942480,0.67,124.01,123.97,11.67167898]
[1766527943390,0.67,124.01,123.97,3.60527902]
[1766527945298,0.67,124.01,123.97,0.65]
[1766527946298,0.67,124.01,123.97,3.60527902]
[1766527949886,0.67,124.01,123.97,11.67172958]
[1766527950878,8.06340682,124.05,124.01,0.65]
[1766527951180,0.67,124.06,124.02,3.60527902]
[1766527951686,0.67,124.08,124.05,2.95527902]
[1766527952893,11.10767296,124.1,124.06,2.95527902]
[1766527953097,0.67,124.09,124.06,2.95527902]
[1766527953484,11.10767296,124.09,124.05,3.60527902]
[1766527954108,11.10767296,124.09,124.06,2.95527902]
[1766527954281,0.67,124.1,124.06,3.61527902]
[1766527954685,11.10767296,124.1,124.06,3.61527902]
[1766527954888,0.67,124.09,124.06,3.61527902]
[1766527955192,0.67,124.09,124.06,0.66]
[1766527955806,0.67,124.09,124.06,3.61527902]
[1766527957200,0.67,124.09,124.06,0.66]
[1766527957525,0.67,124.09,124.06,3.61527902]
[1766527958229,0.67,124.09,124.05,18.33527902]
[1766527960114,0.67,124.09,124.06,2.95527902]
[1766527960503,0.67,124.09,124.05,18.33527902]
[1766527961216,0.67,124.09,124.06,2.95527902]
[1766527961414,0.67,124.09,124.05,18.33527902]
[1766527961723,0.67,124.09,124.06,2.95527902]
[1766527962017,0.67,124.09,124.05,17.67527902]
[1766527962216,0.67,124.09,124.05,18.33527902]
[1766527962392,11.13767296,124.1,124.08,2.95527902]
[1766527962587,11.13767296,124.1,124.07,2.95527902]
[1766527963296,10.43767296,124.1,124.08,2.95527902]
[1766527963497,11.13767296,124.1,124.08,2.95527902]
[1766527963900,11.13767296,124.1,124.08,1.89230911]
[1766527964996,11.13767296,124.1,124.07,0.66]
[1766527965303,11.13767296,124.1,124.07,2.55230911]
[1766527966908,0.7,124.1,124.07,10.61227328]
[1766527967208,0.7,124.1,124.08,1.89230911]
[1766527967717,0.7,124.12,124.09,1.89230911]
[1766527972626,0.7,124.12,124.08,0.66]
[1766527972827,0.7,124.12,124.08,2.55230911]
[1766527975031,0.7,124.12,124.08,10.61160958]
[1766527975631,0.7,124.12,124.09,1.89230911]
[1766527976504,0.7,124.12,124.07,0.66]
[1766527976709,0.7,124.12,124.08,1.89230911]
[1766527977029,0.7,124.12,124.09,1.89230911]
[1766527977816,10.43767296,124.14,124.09,1.89230911]
[1766527978028,0.7,124.13,124.1,2.55230911]
[1766527978230,0.7,124.13,124.1,1.89230911]
[1766527980126,0.7,124.13,124.09,0.66]
[1766527980325,0.7,124.12,124.08,0.66]
[1766527980551,0.7,124.12,124.09,2.55230911]
[1766527980850,0.7,124.16,124.11,2.55230911]
[1766527981018,0.7,124.16,124.12,1.89230911]
[1766527981828,8.05428003,124.16,124.11,2.55230911]
[1766527982119,0.7,124.15,124.11,2.55230911]
[1766527985250,0.7,124.13,124.08,0.66]
[1766527985436,0.7,124.11,124.06,0.66]
[1766527985639,12.32998207,124.12,124.06,2.55230911]
[1766527985640,0.7,124.1,124.06,2.55230911]
[1766527985936,0.7,124.1,124.07,2.55230911]
[1766527986134,0.7,124.09,124.03,22.78236332]
[1766527986337,0.7,124.07,124.02,0.66]
[1766527986539,1.89230911,124.05,123.98,8.06537033]
[1766527986718,0.7,124.03,123.99,2.55230911]
[1766527987131,0.66,124.02,123.97,15.38]
[1766527987329,0.66,124.0,123.94,0.66]
[1766527987828,0.66,124.0,123.95,1.89230911]
[1766527988151,0.66,124.0,123.94,0.66]
[1766527988447,0.66,124.0,123.96,8.06701737]
[1766527988650,0.66,124.0,123.97,1.89230911]
[1766527988838,0.66,124.0,123.96,8.06701737]
[1766527989021,0.66,124.0,123.95,8.06759065]
[1766527989217,20.39322062,124.02,123.99,1.89230911]
[1766527989218,0.66,124.02,123.99,1.89230911]
[1766527989642,0.66,124.03,123.99,2.55230911]
[1766527989840,0.66,124.03,123.97,0.66]
[1766527990041,0.66,124.03,123.99,1.89230911]
[1766527990447,0.66,124.03,123.98,1.89230911]
[1766527990947,8.06672548,124.06,123.99,8.06499661]
[1766527991148,0.66,124.05,124.0,0.66]
[1766527991326,0.66,124.05,124.0,2.55230911]
[1766527991645,0.66,124.07,124.03,0.66]
[1766527991839,0.66,124.07,124.03,1.89230911]
[1766527992035,0.66,124.07,124.02,0.66]
[1766527992549,0.66,124.1,124.05,1.89230911]
[1766527992723,24.67028366,124.11,124.05,1.89230911]
[1766527992724,10.43767296,124.08,124.05,1.89230911]
[1766527993052,0.66,124.07,124.05,1.89230911]
[1766527993453,0.66,124.1,124.06,1.89230911]
[1766527997228,0.66,124.1,124.07,1.89230911]
[1766527997436,0.66,124.1,124.05,8.72117122]
[1766527997745,0.66,124.1,124.06,1.89230911]
[1766527998543,0.66,124.1,124.05,2.55230911]
[1766527998843,0.66,124.08,124.03,0.66]
[1766527999051,0.66,124.08,124.04,1.89230911]
[1766527999251,0.66,124.08,124.05,1.89230911]